[Event "*** Titled Tuesday Blitz"]
[Site "Chess.com"]
[Date "2020.11.03"]
[Round "5"]
[White "PauloCesarCosta_sad"]
[Black "AlexSuv"]
[Result "1/2-1/2"]
[WhiteElo "2335"]
[BlackElo "2571"]
[TimeControl "180+1"]
[EndTime "11:00:22 PST"]
[Termination "Game drawn - insufficient material"]

1. Nf3 {[%clk 0:03:00.9]} 1... d5 {[%clk 0:02:59.3]} 2. d4 {[%clk 0:03:00.5]}
2... c5 {[%clk 0:02:56.2]} 3. c3 {[%clk 0:02:57.8]} 3... Nc6 {[%clk 0:02:51.6]}
4. e3 {[%clk 0:02:51.6]} 4... e6 {[%clk 0:02:45.9]} 5. Nbd2 {[%clk 0:02:43.8]}
5... f5 {[%clk 0:02:28.8]} 6. Bb5 {[%clk 0:02:35.4]} 6... Nf6 {[%clk 0:02:24.3]}
7. O-O {[%clk 0:02:34.4]} 7... Bd6 {[%clk 0:02:23.2]} 8. c4 {[%clk 0:02:24.1]}
8... O-O {[%clk 0:02:19.7]} 9. Nb3 {[%clk 0:02:15.8]} 9... cxd4 {[%clk
0:02:14.2]} 10. c5 {[%clk 0:02:09.6]} 10... Bc7 {[%clk 0:02:04]} 11. exd4 {[%clk
0:02:09.1]} 11... Ne4 {[%clk 0:02:00]} 12. Re1 {[%clk 0:02:08]} 12... Bd7 {[%clk
0:01:50.8]} 13. Be3 {[%clk 0:01:58.7]} 13... f4 {[%clk 0:01:47.8]} 14. Bd2
{[%clk 0:01:53]} 14... Rf5 {[%clk 0:01:45.6]} 15. Bd3 {[%clk 0:01:45.4]} 15...
Qf6 {[%clk 0:01:22.7]} 16. Bxe4 {[%clk 0:01:38.8]} 16... dxe4 {[%clk 0:01:23.6]}
17. Rxe4 {[%clk 0:01:39.1]} 17... Ne7 {[%clk 0:01:24.3]} 18. Ne5 {[%clk
0:01:26.1]} 18... Bc6 {[%clk 0:01:04.5]} 19. Nxc6 {[%clk 0:01:20]} 19... bxc6
{[%clk 0:01:02.1]} 20. Qf3 {[%clk 0:01:10]} 20... Nd5 {[%clk 0:00:57.4]} 21. Ba5
{[%clk 0:01:04.1]} 21... Bb8 {[%clk 0:00:50]} 22. Rae1 {[%clk 0:00:58.8]} 22...
e5 {[%clk 0:00:36.8]} 23. Bc3 {[%clk 0:00:58.3]} 23... Nxc3 {[%clk 0:00:35.6]}
24. bxc3 {[%clk 0:00:56.1]} 24... Qe7 {[%clk 0:00:11]} 25. Rxf4 {[%clk
0:00:50.5]} 25... Rxf4 {[%clk 0:00:05.4]} 26. Qxf4 {[%clk 0:00:49]} 26... Bc7
{[%clk 0:00:06.1]} 27. Qe4 {[%clk 0:00:40.6]} 27... Rf8 {[%clk 0:00:06.4]} 28.
dxe5 {[%clk 0:00:33.5]} 28... Qe6 {[%clk 0:00:04.7]} 29. f4 {[%clk 0:00:27]}
29... Kh8 {[%clk 0:00:03.7]} 30. h3 {[%clk 0:00:19.4]} 30... a5 {[%clk
0:00:03.5]} 31. Nd4 {[%clk 0:00:18.9]} 31... Qc4 {[%clk 0:00:03.9]} 32. Nxc6
{[%clk 0:00:18.2]} 32... Qxc3 {[%clk 0:00:03.9]} 33. Qe3 {[%clk 0:00:12.6]}
33... Qc4 {[%clk 0:00:03.5]} 34. Nd4 {[%clk 0:00:10.3]} 34... Qxc5 {[%clk
0:00:03.3]} 35. Ne6 {[%clk 0:00:10.3]} 35... Qxe3+ {[%clk 0:00:03]} 36. Rxe3
{[%clk 0:00:10.4]} 36... Rf7 {[%clk 0:00:03.9]} 37. Nxc7 {[%clk 0:00:10.3]}
37... Rxc7 {[%clk 0:00:04.8]} 38. Kf2 {[%clk 0:00:09.9]} 38... Kg8 {[%clk
0:00:04.8]} 39. Kf3 {[%clk 0:00:10.1]} 39... Kf7 {[%clk 0:00:05.5]} 40. Ke4
{[%clk 0:00:09.3]} 40... Rc4+ {[%clk 0:00:05.9]} 41. Kf3 {[%clk 0:00:07.7]}
41... Ke6 {[%clk 0:00:06.1]} 42. Rd3 {[%clk 0:00:06.5]} 42... h5 {[%clk
0:00:06.2]} 43. g3 {[%clk 0:00:06.5]} 43... Ra4 {[%clk 0:00:05.3]} 44. a3 {[%clk
0:00:05.8]} 44... Rc4 {[%clk 0:00:04.9]} 45. g4 {[%clk 0:00:05.4]} 45... h4
{[%clk 0:00:04.8]} 46. Re3 {[%clk 0:00:03.6]} 46... a4 {[%clk 0:00:04.6]} 47.
f5+ {[%clk 0:00:03.8]} 47... Kd5 {[%clk 0:00:05.1]} 48. e6 {[%clk 0:00:04.1]}
48... Rc8 {[%clk 0:00:05]} 49. Kf4 {[%clk 0:00:03.8]} 49... Rh8 {[%clk
0:00:04.7]} 50. Kg5 {[%clk 0:00:03.7]} 50... Kd6 {[%clk 0:00:05.1]} 51. Kg6
{[%clk 0:00:03.8]} 51... Ke7 {[%clk 0:00:06]} 52. Kxg7 {[%clk 0:00:03.4]} 52...
Rf8 {[%clk 0:00:06.4]} 53. Kg6 {[%clk 0:00:03.4]} 53... Rf6+ {[%clk 0:00:06.6]}
54. Kg5 {[%clk 0:00:03.7]} 54... Rf8 {[%clk 0:00:07.5]} 55. Kf4 {[%clk 0:00:04]}
55... Rc8 {[%clk 0:00:07.3]} 56. Rd3 {[%clk 0:00:03.9]} 56... Rc4+ {[%clk
0:00:08.2]} 57. Kf3 {[%clk 0:00:03.7]} 57... Kf6 {[%clk 0:00:09.1]} 58. Rd7
{[%clk 0:00:03.7]} 58... Rc3+ {[%clk 0:00:08.4]} 59. Ke4 {[%clk 0:00:03.8]}
59... Rc4+ {[%clk 0:00:08.8]} 60. Kd5 {[%clk 0:00:04]} 60... Rc3 {[%clk
0:00:08.9]} 61. Rf7+ {[%clk 0:00:04]} 61... Kg5 {[%clk 0:00:09.4]} 62. Rg7+
{[%clk 0:00:04]} 62... Kf6 {[%clk 0:00:09.5]} 63. Ra7 {[%clk 0:00:04.9]} 63...
Rd3+ {[%clk 0:00:09.3]} 64. Kc6 {[%clk 0:00:05]} 64... Rxa3 {[%clk 0:00:10.1]}
65. Kb5 {[%clk 0:00:05]} 65... Rxh3 {[%clk 0:00:09.5]} 66. Rxa4 {[%clk
0:00:05.1]} 66... Rg3 {[%clk 0:00:09.1]} 67. g5+ {[%clk 0:00:04.7]} 67... Kxf5
{[%clk 0:00:08.6]} 68. e7 {[%clk 0:00:04.5]} 68... Re3 {[%clk 0:00:08.3]} 69.
Rxh4 {[%clk 0:00:04]} 69... Rxe7 {[%clk 0:00:07.8]} 70. Rh1 {[%clk 0:00:03.8]}
70... Kxg5 {[%clk 0:00:07.2]} 71. Rg1+ {[%clk 0:00:04.3]} 71... Kf5 {[%clk
0:00:07.5]} 72. Rc1 {[%clk 0:00:05.2]} 72... Ke6 {[%clk 0:00:07.9]} 73. Rc5
{[%clk 0:00:05.4]} 73... Kf7 {[%clk 0:00:08.8]} 74. Rc6 {[%clk 0:00:05.6]} 74...
Re6 {[%clk 0:00:09.6]} 75. Kb6 {[%clk 0:00:06]} 75... Rxc6+ {[%clk 0:00:09.5]}
76. Kxc6 {[%clk 0:00:06.2]} 1/2-1/2

[Event "*** Titled Tuesday Blitz"]
[Site "Chess.com"]
[Date "2020.11.03"]
[Round "5"]
[White "Airquake"]
[Black "Jumbo"]
[Result "1-0"]
[WhiteElo "2624"]
[BlackElo "2835"]
[TimeControl "180+1"]
[EndTime "11:00:25 PST"]
[Termination "Airquake won by resignation"]

1. e4 {[%clk 0:03:00.7]} 1... c5 {[%clk 0:02:59]} 2. Nf3 {[%clk 0:03:00.1]} 2...
e6 {[%clk 0:02:59]} 3. Nc3 {[%clk 0:02:56.1]} 3... Nc6 {[%clk 0:02:58.8]} 4. g3
{[%clk 0:02:53.8]} 4... d5 {[%clk 0:02:56.3]} 5. Bg2 {[%clk 0:02:52.9]} 5... Nf6
{[%clk 0:02:46.2]} 6. exd5 {[%clk 0:02:42.8]} 6... exd5 {[%clk 0:02:44]} 7. O-O
{[%clk 0:02:42.9]} 7... d4 {[%clk 0:02:39.9]} 8. Re1+ {[%clk 0:02:37.3]} 8...
Be7 {[%clk 0:02:39.9]} 9. Ne4 {[%clk 0:02:30]} 9... Nxe4 {[%clk 0:02:16]} 10.
Rxe4 {[%clk 0:02:30.9]} 10... d3 {[%clk 0:02:16.4]} 11. cxd3 {[%clk 0:02:06.2]}
11... O-O {[%clk 0:02:15.9]} 12. Ne5 {[%clk 0:02:03.5]} 12... Nd4 {[%clk
0:02:09.8]} 13. b3 {[%clk 0:01:54]} 13... Bf6 {[%clk 0:01:58.7]} 14. Bb2 {[%clk
0:01:53]} 14... Bf5 {[%clk 0:01:55.9]} 15. Re3 {[%clk 0:01:48.4]} 15... Qc7
{[%clk 0:01:47.6]} 16. f4 {[%clk 0:01:31]} 16... Rad8 {[%clk 0:01:42]} 17. Rc1
{[%clk 0:01:30.1]} 17... Qb6 {[%clk 0:01:38.6]} 18. Ba3 {[%clk 0:01:19.9]} 18...
Rc8 {[%clk 0:01:26.7]} 19. g4 {[%clk 0:01:19.4]} 19... Bxe5 {[%clk 0:01:07.4]}
20. Rxe5 {[%clk 0:01:14]} 20... Bxd3 {[%clk 0:01:07.4]} 21. Bxc5 {[%clk
0:01:03.7]} 21... Ne2+ {[%clk 0:00:36.3]} 22. Kf2 {[%clk 0:00:50.8]} 22... Qf6
{[%clk 0:00:32.7]} 23. Rxe2 {[%clk 0:00:45]} 23... Qxf4+ {[%clk 0:00:20.1]} 24.
Kg1 {[%clk 0:00:45.2]} 24... Rxc5 {[%clk 0:00:20.2]} 25. Rxc5 {[%clk 0:00:35]}
25... Qd4+ {[%clk 0:00:20.6]} 26. Re3 {[%clk 0:00:35.4]} 26... Qxc5 {[%clk
0:00:20.4]} 27. Bxb7 {[%clk 0:00:36.3]} 27... h6 {[%clk 0:00:14.6]} 28. Qe1
{[%clk 0:00:28.4]} 28... Qd4 {[%clk 0:00:13.8]} 29. h3 {[%clk 0:00:26.3]} 29...
f5 {[%clk 0:00:13.6]} 30. Kh2 {[%clk 0:00:02.5]} 30... f4 {[%clk 0:00:13.5]} 31.
Rf3 {[%clk 0:00:02.5]} 31... Kh8 {[%clk 0:00:08.5]} 32. Qf2 {[%clk 0:00:02.9]}
32... Qd7 {[%clk 0:00:07.5]} 33. Rxf4 {[%clk 0:00:02.2]} 33... Rxf4 {[%clk
0:00:06.8]} 34. Qxf4 {[%clk 0:00:03.1]} 34... Qxb7 {[%clk 0:00:07.2]} 35. Qd6
{[%clk 0:00:04]} 35... Bh7 {[%clk 0:00:06.3]} 36. d3 {[%clk 0:00:03.8]} 36...
Bg8 {[%clk 0:00:06.3]} 37. d4 {[%clk 0:00:03.7]} 37... Qd5 {[%clk 0:00:06.7]}
38. Qxd5 {[%clk 0:00:03.6]} 38... Bxd5 {[%clk 0:00:06.3]} 39. Kg3 {[%clk
0:00:04.5]} 39... Kg8 {[%clk 0:00:06]} 40. Kf4 {[%clk 0:00:04.9]} 40... Kf7
{[%clk 0:00:06.3]} 41. Ke5 {[%clk 0:00:05.8]} 41... Bg2 {[%clk 0:00:06.7]} 42.
h4 {[%clk 0:00:06]} 42... Ke7 {[%clk 0:00:05.5]} 43. g5 {[%clk 0:00:06.1]} 43...
h5 {[%clk 0:00:05.4]} 44. a3 {[%clk 0:00:05.7]} 44... Bh3 {[%clk 0:00:05]} 45.
b4 {[%clk 0:00:05.6]} 45... Kd7 {[%clk 0:00:05.3]} 46. a4 {[%clk 0:00:05.2]}
46... Bf1 {[%clk 0:00:04.7]} 47. d5 {[%clk 0:00:04.2]} 47... Bd3 {[%clk
0:00:05]} 48. Kd4 {[%clk 0:00:03.4]} 48... Bc2 {[%clk 0:00:05.5]} 49. a5 {[%clk
0:00:03.8]} 49... a6 {[%clk 0:00:06.1]} 50. Kc5 {[%clk 0:00:04.2]} 50... Ba4
{[%clk 0:00:06.7]} 51. Kb6 {[%clk 0:00:03.2]} 51... Bb5 {[%clk 0:00:06.9]} 52.
Kc5 {[%clk 0:00:04.1]} 52... Kc7 {[%clk 0:00:07.3]} 53. d6+ {[%clk 0:00:04.2]}
53... Kd7 {[%clk 0:00:07.7]} 54. Kd5 {[%clk 0:00:05.1]} 54... Ba4 {[%clk
0:00:08.1]} 55. Kc5 {[%clk 0:00:05.5]} 55... Bc6 {[%clk 0:00:08]} 56. Kb6 {[%clk
0:00:05]} 56... Bb5 {[%clk 0:00:07.9]} 57. Kc5 {[%clk 0:00:05.6]} 57... g6
{[%clk 0:00:07.3]} 58. Kd5 {[%clk 0:00:05.8]} 58... Bc6+ {[%clk 0:00:07.7]} 59.
Kc5 {[%clk 0:00:05.4]} 59... Bf3 {[%clk 0:00:07.8]} 60. Kb6 {[%clk 0:00:05.8]}
60... Be2 {[%clk 0:00:07.8]} 61. Kc5 {[%clk 0:00:06.1]} 61... Ke6 {[%clk
0:00:07]} 62. Kc6 {[%clk 0:00:05.7]} 62... Bb5+ {[%clk 0:00:07.4]} 63. Kc7
{[%clk 0:00:05.9]} 63... Bd7 {[%clk 0:00:07.9]} 64. Kb6 {[%clk 0:00:05.7]} 64...
Kxd6 {[%clk 0:00:04.8]} 65. Kxa6 {[%clk 0:00:06.1]} 65... Kc7 {[%clk 0:00:04.2]}
66. b5 {[%clk 0:00:05.2]} 66... Bc8+ {[%clk 0:00:02.8]} 67. Ka7 {[%clk
0:00:05.5]} 67... Kd6 {[%clk 0:00:03]} 68. b6 {[%clk 0:00:05.3]} 68... Ke5
{[%clk 0:00:03.2]} 69. a6 {[%clk 0:00:04.3]} 1-0

[Event "*** Titled Tuesday Blitz"]
[Site "Chess.com"]
[Date "2020.11.03"]
[Round "5"]
[White "almo64"]
[Black "Neftegor"]
[Result "1-0"]
[WhiteElo "2685"]
[BlackElo "2453"]
[TimeControl "180+1"]
[EndTime "11:00:26 PST"]
[Termination "almo64 won on time"]

1. e4 {[%clk 0:02:53.2]} 1... e5 {[%clk 0:02:58.9]} 2. Nc3 {[%clk 0:02:51.6]}
2... Nf6 {[%clk 0:02:57.7]} 3. Bc4 {[%clk 0:02:52.1]} 3... Nc6 {[%clk
0:02:55.6]} 4. d3 {[%clk 0:02:51.9]} 4... Na5 {[%clk 0:02:54.8]} 5. Bb3 {[%clk
0:02:51.6]} 5... c6 {[%clk 0:02:50.6]} 6. Bg5 {[%clk 0:02:50.6]} 6... Nxb3
{[%clk 0:02:40.8]} 7. axb3 {[%clk 0:02:50.5]} 7... d6 {[%clk 0:02:40.3]} 8. Nf3
{[%clk 0:02:45.2]} 8... Be7 {[%clk 0:02:40.3]} 9. d4 {[%clk 0:02:45.6]} 9... Qc7
{[%clk 0:02:35]} 10. O-O {[%clk 0:02:43.3]} 10... O-O {[%clk 0:02:34.4]} 11. h3
{[%clk 0:02:42]} 11... h6 {[%clk 0:02:33.6]} 12. Bh4 {[%clk 0:02:41.6]} 12...
Re8 {[%clk 0:02:29.7]} 13. Re1 {[%clk 0:02:41.2]} 13... Nh7 {[%clk 0:02:29.5]}
14. Bg3 {[%clk 0:02:41.2]} 14... Bf6 {[%clk 0:02:20]} 15. d5 {[%clk 0:02:26.6]}
15... Nf8 {[%clk 0:02:10]} 16. Qd3 {[%clk 0:02:24.5]} 16... c5 {[%clk
0:02:00.7]} 17. Nb5 {[%clk 0:02:23.3]} 17... Qb6 {[%clk 0:01:56.6]} 18. Nd2
{[%clk 0:02:11.1]} 18... Bd7 {[%clk 0:01:55.6]} 19. Nc3 {[%clk 0:01:27.3]} 19...
Ng6 {[%clk 0:01:49.7]} 20. f3 {[%clk 0:01:06.7]} 20... a6 {[%clk 0:01:47.5]} 21.
Bf2 {[%clk 0:01:04.8]} 21... Qc7 {[%clk 0:01:47.5]} 22. Ne2 {[%clk 0:01:01.2]}
22... Bg5 {[%clk 0:01:46.8]} 23. Kh2 {[%clk 0:00:55.3]} 23... b5 {[%clk
0:01:40.6]} 24. g3 {[%clk 0:00:53.7]} 24... Rec8 {[%clk 0:01:30.2]} 25. h4
{[%clk 0:00:49.9]} 25... Be7 {[%clk 0:01:25.7]} 26. c3 {[%clk 0:00:47.9]} 26...
Rf8 {[%clk 0:01:23.2]} 27. h5 {[%clk 0:00:46.3]} 27... Nh8 {[%clk 0:01:22.2]}
28. g4 {[%clk 0:00:46.8]} 28... Bg5 {[%clk 0:01:21.5]} 29. Be3 {[%clk
0:00:46.4]} 29... f6 {[%clk 0:01:11.6]} 30. Bf2 {[%clk 0:00:43.5]} 30... Nf7
{[%clk 0:01:10.5]} 31. Kg2 {[%clk 0:00:41.2]} 31... Bxd2 {[%clk 0:01:10.2]} 32.
Qxd2 {[%clk 0:00:41.1]} 32... Ng5 {[%clk 0:01:10.4]} 33. Ng3 {[%clk 0:00:39.4]}
33... a5 {[%clk 0:01:10.1]} 34. b4 {[%clk 0:00:33.2]} 34... Nf7 {[%clk
0:00:53.7]} 35. bxa5 {[%clk 0:00:29]} 35... Rxa5 {[%clk 0:00:52.8]} 36. b4
{[%clk 0:00:29.7]} 36... Ra4 {[%clk 0:00:42.8]} 37. bxc5 {[%clk 0:00:18.6]}
37... dxc5 {[%clk 0:00:42.7]} 38. d6 {[%clk 0:00:18]} 38... Qc6 {[%clk
0:00:39.7]} 39. Rxa4 {[%clk 0:00:14.6]} 39... bxa4 {[%clk 0:00:38.8]} 40. Rd1
{[%clk 0:00:14.5]} 40... Ra8 {[%clk 0:00:37.6]} 41. Qa2 {[%clk 0:00:14.5]} 41...
Ra6 {[%clk 0:00:30.2]} 42. Nf5 {[%clk 0:00:14.8]} 42... Bxf5 {[%clk 0:00:29.3]}
43. gxf5 {[%clk 0:00:14.9]} 43... Ra7 {[%clk 0:00:20.2]} 44. Qe6 {[%clk
0:00:13.7]} 44... Rd7 {[%clk 0:00:17.8]} 45. Bxc5 {[%clk 0:00:13.6]} 45... Rd8
{[%clk 0:00:14.9]} 46. Bb4 {[%clk 0:00:12.3]} 46... Qb5 {[%clk 0:00:14.5]} 47.
Rd2 {[%clk 0:00:12.1]} 47... a3 {[%clk 0:00:13.4]} 48. Bxa3 {[%clk 0:00:12]}
48... Qb1 {[%clk 0:00:12.6]} 49. Bb4 {[%clk 0:00:11.9]} 49... Qe1 {[%clk
0:00:12.3]} 50. Qd5 {[%clk 0:00:11.9]} 50... Qh4 {[%clk 0:00:12]} 51. Qe6 {[%clk
0:00:09]} 51... Qg5+ {[%clk 0:00:12]} 52. Kh3 {[%clk 0:00:08.5]} 52... Qf4
{[%clk 0:00:11.6]} 53. Rg2 {[%clk 0:00:07.9]} 53... Qxf3+ {[%clk 0:00:11.5]} 54.
Rg3 {[%clk 0:00:08.4]} 54... Qxh5+ {[%clk 0:00:11.3]} 55. Kg2 {[%clk 0:00:08.7]}
55... Qe2+ {[%clk 0:00:11.1]} 56. Kg1 {[%clk 0:00:09.2]} 56... Qe1+ {[%clk
0:00:10.6]} 57. Kg2 {[%clk 0:00:09.6]} 57... Qe2+ {[%clk 0:00:10.9]} 58. Kg1
{[%clk 0:00:10.2]} 58... Ra8 {[%clk 0:00:09.4]} 59. Rg2 {[%clk 0:00:09.9]} 59...
Ra1+ {[%clk 0:00:07.4]} 60. Kh2 {[%clk 0:00:10.2]} 60... Qh5+ {[%clk 0:00:07.1]}
61. Kg3 {[%clk 0:00:10.9]} 61... Qg5+ {[%clk 0:00:07.2]} 62. Kf3 {[%clk
0:00:09.9]} 62... Qf4+ {[%clk 0:00:07.2]} 63. Ke2 {[%clk 0:00:09.7]} 63... Qf1+
{[%clk 0:00:07.1]} 64. Ke3 {[%clk 0:00:09.7]} 64... Qxg2 {[%clk 0:00:05.8]} 65.
Kd3 {[%clk 0:00:09.2]} 65... Qf1+ {[%clk 0:00:04.9]} 66. Kc2 {[%clk 0:00:09.6]}
66... Rc1+ {[%clk 0:00:04.7]} 67. Kb3 {[%clk 0:00:09.6]} 67... Qd1+ {[%clk
0:00:05.2]} 68. Kc4 {[%clk 0:00:07.9]} 68... Qe2+ {[%clk 0:00:03.5]} 69. Kc5
{[%clk 0:00:07.8]} 69... Rd1 {[%clk 0:00:03.5]} 70. Qe8+ {[%clk 0:00:08]} 70...
Kh7 {[%clk 0:00:03.6]} 71. d7 {[%clk 0:00:08.9]} 71... Qd3 {[%clk 0:00:02.8]}
72. Kc6 {[%clk 0:00:08.9]} 1-0

[Event "*** Titled Tuesday Blitz"]
[Site "Chess.com"]
[Date "2020.11.03"]
[Round "5"]
[White "gurelediz"]
[Black "Brave_spirit12"]
[Result "1-0"]
[WhiteElo "2703"]
[BlackElo "2493"]
[TimeControl "180+1"]
[EndTime "11:00:29 PST"]
[Termination "gurelediz won by checkmate"]

1. e4 {[%clk 0:03:00.9]} 1... e6 {[%clk 0:02:59.4]} 2. d4 {[%clk 0:03:00.7]}
2... d5 {[%clk 0:03:00.3]} 3. Nd2 {[%clk 0:03:01.3]} 3... c5 {[%clk 0:03:00]} 4.
exd5 {[%clk 0:02:57.7]} 4... exd5 {[%clk 0:02:58.2]} 5. Ngf3 {[%clk 0:02:53.9]}
5... Nc6 {[%clk 0:02:57.6]} 6. Bb5 {[%clk 0:02:53.7]} 6... Bd6 {[%clk
0:02:57.2]} 7. Qe2+ {[%clk 0:02:53.8]} 7... Ne7 {[%clk 0:02:55.8]} 8. O-O {[%clk
0:02:52.7]} 8... O-O {[%clk 0:02:55.5]} 9. dxc5 {[%clk 0:02:53.2]} 9... Bxc5
{[%clk 0:02:56.4]} 10. Nb3 {[%clk 0:02:53.7]} 10... Bd6 {[%clk 0:02:55.8]} 11.
Bg5 {[%clk 0:02:45.6]} 11... f6 {[%clk 0:02:54.5]} 12. Bh4 {[%clk 0:02:46.1]}
12... Bg4 {[%clk 0:02:54.9]} 13. Bg3 {[%clk 0:02:30]} 13... a6 {[%clk
0:02:50.9]} 14. Bd3 {[%clk 0:02:27.6]} 14... Re8 {[%clk 0:02:49.6]} 15. Rfe1
{[%clk 0:02:20.1]} 15... Bxg3 {[%clk 0:02:41.2]} 16. hxg3 {[%clk 0:02:19]} 16...
Ne5 {[%clk 0:02:41.7]} 17. Nbd4 {[%clk 0:02:10.7]} 17... N7c6 {[%clk 0:02:38.3]}
18. Qd2 {[%clk 0:02:04.9]} 18... Bxf3 {[%clk 0:02:26.9]} 19. Nxf3 {[%clk
0:02:04.8]} 19... Nxf3+ {[%clk 0:02:23.8]} 20. gxf3 {[%clk 0:02:05.7]} 20... Qd6
{[%clk 0:02:24]} 21. Kg2 {[%clk 0:02:02.9]} 21... Ne5 {[%clk 0:02:10.4]} 22.
Rad1 {[%clk 0:01:59.5]} 22... Rad8 {[%clk 0:02:02.4]} 23. Qf4 {[%clk 0:01:46.3]}
23... g6 {[%clk 0:01:21.4]} 24. c3 {[%clk 0:01:22.6]} 24... Qb6 {[%clk
0:01:09.7]} 25. Bb1 {[%clk 0:01:21]} 25... Kg7 {[%clk 0:01:05]} 26. Rh1 {[%clk
0:01:18.8]} 26... h5 {[%clk 0:00:55.3]} 27. g4 {[%clk 0:01:02.6]} 27... Rh8
{[%clk 0:00:34.8]} 28. g5 {[%clk 0:01:02]} 28... Rhf8 {[%clk 0:00:32.4]} 29.
Rde1 {[%clk 0:00:59.6]} 29... Rde8 {[%clk 0:00:27.7]} 30. Qg3 {[%clk 0:00:43]}
30... Qd6 {[%clk 0:00:14.4]} 31. gxf6+ {[%clk 0:00:19.8]} 31... Rxf6 {[%clk
0:00:15.3]} 32. Rxh5 {[%clk 0:00:18.5]} 32... Rxf3 {[%clk 0:00:11.5]} 33. Qg5
{[%clk 0:00:08.4]} 33... Qf6 {[%clk 0:00:06.4]} 34. Qxf6+ {[%clk 0:00:07.2]}
34... Rxf6 {[%clk 0:00:05]} 35. Rhxe5 {[%clk 0:00:06.9]} 35... Ref8 {[%clk
0:00:05.7]} 36. R5e2 {[%clk 0:00:06.7]} 36... Rf4 {[%clk 0:00:05]} 37. Bc2
{[%clk 0:00:07.6]} 37... Rg4+ {[%clk 0:00:05.1]} 38. Kh3 {[%clk 0:00:05.3]}
38... Rg5 {[%clk 0:00:04.9]} 39. Re7+ {[%clk 0:00:05.5]} 39... Kh6 {[%clk
0:00:03.8]} 40. R1e6 {[%clk 0:00:04.9]} 40... Rxf2 {[%clk 0:00:03.1]} 41. Re2
{[%clk 0:00:03.5]} 41... Rf3+ {[%clk 0:00:03.3]} 42. Kh2 {[%clk 0:00:04.2]}
42... Rf4 {[%clk 0:00:03.8]} 43. R2e3 {[%clk 0:00:03.7]} 43... Rf2+ {[%clk
0:00:03.2]} 44. Kh1 {[%clk 0:00:02.5]} 44... Rxc2 {[%clk 0:00:04.1]} 45. Rh3+
{[%clk 0:00:03.4]} 45... Rh5 {[%clk 0:00:04.7]} 46. Rxh5+ {[%clk 0:00:04.3]}
46... Kxh5 {[%clk 0:00:05.3]} 47. Rxb7 {[%clk 0:00:05.2]} 47... g5 {[%clk
0:00:05.1]} 48. Kg1 {[%clk 0:00:05.7]} 48... Kh4 {[%clk 0:00:05.1]} 49. Rb6
{[%clk 0:00:06.6]} 49... g4 {[%clk 0:00:04.2]} 50. a4 {[%clk 0:00:04.6]} 50...
Kg3 {[%clk 0:00:04.2]} 51. Kf1 {[%clk 0:00:04.3]} 51... Rc1+ {[%clk 0:00:04.7]}
52. Ke2 {[%clk 0:00:04.4]} 52... Kg2 {[%clk 0:00:05]} 53. Rxa6 {[%clk
0:00:04.6]} 53... g3 {[%clk 0:00:05.5]} 54. Kd3 {[%clk 0:00:02.7]} 54... Kf2
{[%clk 0:00:05.5]} 55. Rf6+ {[%clk 0:00:03.6]} 55... Kg1 {[%clk 0:00:05.2]} 56.
Rg6 {[%clk 0:00:04.5]} 56... g2 {[%clk 0:00:05.5]} 57. a5 {[%clk 0:00:05.1]}
57... Ra1 {[%clk 0:00:05]} 58. b4 {[%clk 0:00:05.3]} 58... Kf2 {[%clk
0:00:05.2]} 59. Kd4 {[%clk 0:00:05]} 59... Rc1 {[%clk 0:00:03.4]} 60. a6 {[%clk
0:00:04.5]} 60... Rb1 {[%clk 0:00:03.1]} 61. Rf6+ {[%clk 0:00:03.3]} 61... Ke2
{[%clk 0:00:03]} 62. Rg6 {[%clk 0:00:04.2]} 62... g1=Q+ {[%clk 0:00:02.9]} 63.
Rxg1 {[%clk 0:00:04.1]} 63... Rxg1 {[%clk 0:00:03.8]} 64. b5 {[%clk 0:00:04.2]}
64... Rb1 {[%clk 0:00:03.6]} 65. a7 {[%clk 0:00:03.7]} 65... Ra1 {[%clk
0:00:03.8]} 66. b6 {[%clk 0:00:04.6]} 66... Ra4+ {[%clk 0:00:04.2]} 67. Kxd5
{[%clk 0:00:04.7]} 67... Kd3 {[%clk 0:00:05.1]} 68. b7 {[%clk 0:00:04.9]} 68...
Ra5+ {[%clk 0:00:06]} 69. Kc6 {[%clk 0:00:04.8]} 69... Kc4 {[%clk 0:00:06.6]}
70. b8=Q {[%clk 0:00:04.5]} 70... Rc5+ {[%clk 0:00:07.5]} 71. Kd6 {[%clk
0:00:04.8]} 71... Rd5+ {[%clk 0:00:08.4]} 72. Ke6 {[%clk 0:00:05.7]} 72... Rc5
{[%clk 0:00:09.3]} 73. a8=Q {[%clk 0:00:05.9]} 73... Kxc3 {[%clk 0:00:09.5]} 74.
Qe4 {[%clk 0:00:06.2]} 74... Kd2 {[%clk 0:00:08]} 75. Qh2+ {[%clk 0:00:06.1]}
75... Kc3 {[%clk 0:00:08.2]} 76. Qhc2# {[%clk 0:00:06.7]} 1-0